Workbook

Sheet от 3 до 7 лет
A1: Утверждаю | H1: Согласовано
A2: Директор ООО"АБК - Пэймент" | H2: Руководитель дошкольной образовательной
A3: Рахматуллин Р.Р. | H3: организации
C8: Примерное 10-дневное меню
C9: для организации питания детей в дошкольных учреждениях
C10: с 12 - часовым пребыванием от 3 до 7 лет
A12: День 1 - ый
A13: Наименование блюд и | C13: Масса | D13: Кол - во | E13: Кол - во | F13: Пищевые вещества | I13: Энергетическая | J13: Витамин | K13: Сборник рецептур
A14: продуктов | C14: порции | D14: (в гр ) | E14: (в гр ) | I14: ценность
D15: брутто | E15: нетто | F15: белки | G15: жиры | H15: угл-ды | I15: Ккал | J15: С
B16: ЗАВТРАК
A17: Каша "Дружба" молочная | C17: 200 | F17: 5.16 | G17: 3.47 | H17: 23.13 | I17: 144.50 | J17: 0.21 | K17: ТТК №7Д
B18: Крупа рисовая | D18: 15.00 | E18: 15.00
B19: Крупа пшенная | D19: 11.00 | E19: 11.00
B20: Молоко | D20: 100.00 | E20: 100.00
B21: Вода | D21: 76.00 | E21: 76.00
B22: Сахар | D22: 5.00 | E22: 5.00
B23: соль иодированная | D23: 1.00 | E23: 1.00
A24: Масло сливочное порционно | C24: 5 | F24: 0.04 | G24: 3.63 | H24: 0.07 | I24: 33.00 | K24: №14 сб шк 2017
B25: Масло сливочное | D25: 5 | E25: 5
A26: Кофейный напиток с молоком | C26: 180 | F26: 2.85 | G26: 2.41 | H26: 14.36 | I26: 91.00 | J26: 0.19 | K26: №395 Дели2010
B27: Кофейный напиток | D27: 2.50 | E27: 2.50
B28: Сахар | D28: 10.00 | E28: 10.00
B29: Молоко | D29: 90.00 | E29: 90.00
B30: Вода | D30: 108.00 | E30: 108.00
A31: Бутерброд с маслом сливочным | C31: 30/5 | F31: 2.30 | G31: 4.50 | H31: 15.40 | I31: 111.00 | K31: №1 Дели2010
B32: Батон нарезной | D32: 30.00 | E32: 30.00
B33: Масло сливочное | D33: 5.00 | E33: 5.00
A34: Итого: | C34: 420 | F34: =F17+F26+F31+F24 -> 10.35 | G34: =G17+G26+G31+G24 -> 14.01 | H34: 52.96 | I34: 379.50 | J34: 0.40
B35: 2 - ой ЗАВТРАК
A36: Сок (или нектар) | C36: 200 | D36: 200 | E36: 200 | F36: 1.00 | G36: 0.00 | H36: 20.20 | I36: 85.34 | J36: 4.00 | K36: №418 сб дошк 2016
A37: в ассортименте
A38: Итого: | C38: 200 | F38: =F36+F157 -> 1.40 | G38: =G36+G157 -> 0.40 | H38: =H36+H157 -> 30.00 | I38: =I36+I157 -> 129.34 | J38: =J36+J157 -> 14.00
B39: ОБЕД
A40: Салат из моркови с сахаром | C40: 60 | F40: 0.75 | G40: 0.06 | H40: 6.97 | I40: 31.40 | K40: №42 СБ дошк 2016
B41: морковь | D41: 72.50 | E41: 58.00
B42: сахар | D42: 3.00 | E42: 3.00
A43: Суп со звездочами с картофелем с куриными фрикадельками | C43: 180/15 | F43: 4.12 | G43: 4.23 | H43: 13.76 | I43: 118.41 | J43: 5.01 | K43: №88,сб дошк2016
B44: цыплята - бройлеры с/м | D44: 26.3 | E44: 17.1
B45: или фарш куриный | D45: 17.1 | E45: 17.1
B46: Лук репчатый | D46: 1.79 | E46: 1.5
B47: Яйцо | D47: 1.44 | E47: 1.2
B48: Вода для фарша | D48: 1.5 | E48: 1.5
B49: соль иодированная | D49: 0.15 | E49: 0.15
B50: Масса полуфабриката | E50: 21.5
B51: масса готовых фрикаделек | E51: 15
B52: Картофель | D52: 79.80 | E52: 60.00
B53: Морковь | D53: 10.00 | E53: 8.00
B54: Лук репчатый | D54: 9.52 | E54: 8.00
B55: суповая засыпка (звездочки) | D55: 8.00 | E55: 8.00
B56: Масло растительное | D56: 4.00 | E56: 4.00
B57: соль иодированная | D57: 1.20 | E57: 1.20
B58: Вода | D58: 132.00 | E58: 132.00
A59: Котлеты рубленые из говядины | C59: 70 | F59: 10.43 | G59: 7.70 | H59: 10.19 | I59: 151.38 | K59: СБ дошкольн. №299, 2016
B60: говядина б/к (котлетное мясо) | D60: 51.16 | E60: 49
B61: или фарш говяжий | D61: 49 | E61: 49
B62: Лук репчатый | D62: 14.64 | E62: 12.3
B63: Хлеб пшеничный | D63: 11 | E63: 11
B64: Вода | D64: 14.7 | E64: 14.7
B65: Сухари панировочные | D65: 4.00 | E65: 4.00
B66: соль иодированная | D66: 0.7 | E66: 0.7
B67: масса полуфабриката | E67: 75.3
B68: масло растительное | D68: 1 | E68: 1
A69: Капуста тушеная | C69: 150 | F69: 3.30 | G69: 4.90 | H69: 14.10 | I69: 114.60 | J69: 24.70 | K69: №354 сбдошк2016
B70: Капуста свежая | D70: 215.00 | E70: 172.00
B71: Лук репчатый | D71: 7.14 | E71: 6.00
B72: Морковь | D72: 3.75 | E72: 3.00
B73: Мука пшеничная | D73: 1.80 | E73: 1.80
B74: Масло растительное | D74: 5.25 | E74: 5.25
B75: Сахар | D75: 4.50 | E75: 4.50
B76: соль иодированная | D76: 1.00 | E76: 1.00
A77: Компот из свежемороженных фруктов | C77: 180 | F77: 0.40 | G77: 0.02 | H77: 25.00 | I77: 101.70 | J77: 0.36 | K77: №394 СБ дошк 2016
B78: фрукты свежезамороженные | D78: 20.00 | E78: 20.00
B79: Вода | D79: 183.00 | E79: 183.00
B80: сахар | D80: 10.0 | E80: 10.0
A81: Хлеб ржаной | C81: 45 | D81: 45.00 | E81: 45.00 | F81: 2.98 | G81: 0.54 | H81: 17.82 | I81: 89.10 | K81: табл 6 стр 144,Дели + 2012
A82: Итого: | C82: 700 | F82: =F40+F43+F59+F69+F77+F81 -> 21.98 | G82: =G40+G43+G59+G69+G77+G81 -> 17.45 | H82: =H40+H43+H59+H69+H77+H81 -> 87.84 | I82: =I40+I43+I59+I69+I77+I81 -> 606.59 | J82: =J40+J43+J59+J69+J77+J81 -> 30.07
B83: ПОЛДНИК
A84: Булочка дорожная | C84: 50 | F84: 3.39 | G84: 6.98 | H84: 26.07 | I84: 181.00 | K84: №453 сб дошк2016
B85: Мука пшеничная | D85: 30.50 | E85: 30.00
B86: мука пшеничная на подпыл | D86: 1.00 | E86: 1.00
B87: Сахар | D87: 6.00 | E87: 6.00
B88: Масло сливочное | D88: 6.50 | E88: 6.50
B89: соль иодированная | D89: 0.30 | E89: 0.30
B90: дрожжи сухие | D90: 0.20 | E90: 0.20
B91: вода | D91: 15.30 | E91: 15.30
B92: масса полуфабриката | E92: 57.00
B93: для крошки:
B94: мука пшеничная | D94: 1.20 | E94: 1.20
B95: масло сливочное | D95: 1.00 | E95: 1.00
B96: масса крошки | E96: 2.00
B97: масло растительное для смазки изделй | D97: 1.00 | E97: 1.00
A98: Кисломолочный напиток | C98: 180/5 | F98: 5.22 | G98: 4.50 | H98: 12.19 | I98: 109.95 | J98: 1.26 | K98: №420 СБ дошк 2016
A99: (Кефир,ряженка,катык,напиток ацидофильный) | B99: кисломолочный напиток | D99: 185.00 | E99: 180.00
B100: сахар | D100: 5.00 | E100: 5.00
C101: 235 | F101: ='[1]от 3 до 7 лет'!F77+F98 -> 8.61 | G101: ='[1]от 3 до 7 лет'!G77+G98 -> 11.48 | H101: ='[1]от 3 до 7 лет'!H77+H98 -> 38.26 | I101: ='[1]от 3 до 7 лет'!I77+I98 -> 290.95 | J101: ='[1]от 3 до 7 лет'!J77+J98 -> 1.26
B102: УЖИН
A103: Пудинг рыбный | C103: 80/30 | F103: 14.60 | G103: 9.00 | H103: 10.80 | I103: 182.00 | K103: №286 СБ дошк 2016
B104: рыба (минтай с/м БГ) | D104: 91.1 | E104: 67
B105: масса отварной рыбы | E105: 53
B106: Хлеб пшеничный | D106: 11 | E106: 11
B107: яйцо | D107: 8.4 | E107: 7
B108: молоко | D108: 16 | E108: 16
B109: масло сливочное | D109: 3 | E109: 3
B110: соль иодированная | D110: 0.5 | E110: 0.5
B111: Масло растительное | D111: 1.3 | E111: 1.3
B112: Соус молочный
B113: молоко | D113: 15 | E113: 15
B114: масло сливочное | D114: 1.65 | E114: 1.65
B115: Мука пшеничная | D115: 1.65 | E115: 1.65
B116: Вода | D116: 15 | E116: 15
B117: Сахар | D117: 0.3 | E117: 0.3
B118: соль иодированная | D118: 0.2 | E118: 0.2
B119: масса соуса | E119: 30
A120: Пюре Картофельное | C120: 140 | F120: 2.86 | G120: 4.48 | H120: 19.07 | I120: 128.10 | J120: 0.23 | K120: № 339 СБ дошк 2016
B121: Картофель | D121: 159.60 | E121: 119.70
B122: Молоко | D122: 22.12 | E122: 21.00
B123: Масло сливочное | D123: 5.00 | E123: 5.00
B124: соль иодированная | D124: 0.52 | E124: 0.52
A125: Чай с сахаром | C125: 180/10 | F125: 0.10 | G125: 0.02 | H125: 10.00 | I125: 40.00 | K125: № 392 Дели 2010
B126: чай весовой | D126: 0.45 | E126: 0.45
B127: сахар | D127: 10.00 | E127: 10.00
B128: Вода | D128: 180.00 | E128: 180.00
A129: Хлеб пшеничный | C129: 25 | D129: 25.00 | E129: 25.00 | F129: 1.90 | G129: 0.20 | H129: 12.30 | I129: 58.75 | J129: 0.00 | K129: табл 6 стр 134,Дели + 2012
A130: Итого: | C130: 465 | F130: =F103+F120+F125+F129 -> 19.46 | G130: =G103+G120+G125+G129 -> 13.70 | H130: 52.17 | I130: 408.85 | J130: 0.23
A131: ВСЕГО: | C131: =C34+C38+C82+C101+C130 -> 2020.00 | F131: =F34+F38+F82+F101+F130 -> 61.80 | G131: =G34+G38+G82+G101+G130 -> 57.04 | H131: =H34+H38+H82+H101+H130 -> 261.23 | I131: =I34+I38+I82+I101+I130 -> 1815.23 | J131: =J34+J38+J82+J101+J130 -> 45.96
A133: День 2- ой
A134: Наименование блюд и | C134: Масса | D134: Кол - во | E134: Кол - во | F134: Пищевые вещества | I134: Энергетическая | J134: Витамин | K134: Сборник
A135: продуктов | C135: порции | D135: (в гр ) | E135: (в гр ) | I135: ценность | K135: рецептур
D136: брутто | E136: нетто | F136: белки | G136: жиры | H136: угл-ды | I136: Ккал | J136: С
B137: ЗАВТРАК
A138: Каша полбяная молочная | C138: 200 | F138: 5.83 | G138: 0.35 | H138: 25.75 | I138: 129.85 | K138: ТТК №1Д
B139: Крупа полбяная | D139: 25.00 | E139: 25.00
B140: Молоко | D140: 100.00 | E140: 100.00
B141: вода | D141: 76.00 | E141: 76.00
B142: Сахар | D142: 5.00 | E142: 5.00
B143: соль иодированная | D143: 1.00 | E143: 1.00
A144: Масло сливочное порционно | C144: 5 | F144: 0.04 | G144: 3.62 | H144: 0.07 | I144: 33.00 | K144: №6 сб дошк 2016
B145: Масло сливочное | D145: 5.00 | E145: 5.00
A146: Какао с молоком | C146: 180 | F146: 3.67 | G146: 3.19 | H146: 15.82 | I146: 107.00 | J146: 0.39 | K146: №397 Дели2010
B147: Какао-порошок | D147: 2.00 | E147: 2.00
B148: Сахар | D148: 10.00 | E148: 10.00
B149: Молоко | D149: 110.00 | E149: 110.00
B150: Вода | D150: 80.00 | E150: 80.00
A151: Бутерброд с сыром, маслом сливочным | C151: 30/10/5 | F151: 5.59 | G151: 8.00 | H151: 15.40 | I151: 156.40 | J151: 0.21 | K151: №3 сб дошк2016
B152: Батон нарезной | D152: 30.00 | E152: 30.00
B153: Сыр | D153: 10.20 | E153: 10.00
B154: Масло сливочное | D154: 5.00 | E154: 5.00
A155: Итого: | C155: 430 | F155: =F138+F146+F151+F144 -> 15.13 | G155: =G138+G146+G151+G144 -> 15.16 | H155: 57.04 | I155: 426.25 | J155: 0.60
B156: 2 - ой ЗАВТРАК
A157: Фрукты свежие | C157: 100 | D157: 114 | E157: 100 | F157: 0.40 | G157: 0.40 | H157: 9.80 | I157: 44.00 | J157: 10.00 | K157: №386 СБ
A158: (яблоки,или апельсин, или банан,или мандарин ) | K158: дошк.2016
A159: Итого: | C159: 100 | F159: =F157 -> 0.40 | G159: =G157 -> 0.40 | H159: 9.80 | I159: 44.00 | J159: 10.00
B160: ОБЕД
A161: Салат из картофеля с солеными огурцами | C161: 60 | F161: 0.82 | G161: 3.13 | H161: 5.14 | I161: 51.96 | J161: 7.20 | K161: №23 сб дошк2016
B162: огурцы соленые | D162: 32.76 | E162: 18.00
B163: картофель | D163: 32.90 | E163: 24.00
B164: морковь | D164: 15.36 | E164: 12.00
B165: лук репчатый | D165: 3.60 | E165: 3.00
B166: масло растительное | D166: 3.00 | E166: 3.00
A167: Борщ со свежей капустой, картофелем на м/б,со сметаной | C167: 180/7 | F167: 1.50 | G167: 3.90 | H167: 9.50 | I167: 79.00 | J167: 6.36 | K167: №110, сб шк2004
B168: Капуста свежая | D168: 20.00 | E168: 16.00
B169: Картофель | D169: 21.28 | E169: 16.00
B170: Морковь | D170: 12.50 | E170: 10.00
B171: Лук репчатый | D171: 9.52 | E171: 8.00
B172: Свекла | D172: 41.00 | E172: 32.00
B173: Сахар | D173: 2.40 | E173: 2.40
B174: Томат-паста | D174: 1.00 | E174: 1.00
B175: Масло растительное | D175: 4.00 | E175: 4.00
B176: соль иодированная | D176: 2.00 | E176: 2.00
B177: Бульон | D177: 140.00 | E177: 140.00
B178: Сметана | D178: 7.00 | E178: 7.00
A179: Плов из отварной говядины | C179: 200 | F179: 15.60 | G179: 15.00 | H179: 28.00 | I179: 309.50 | J179: 0.65 | K179: №443,сбшк2004
B180: говядина (лопатка б/к) | D180: 52.00 | E180: 52.0
B181: масса отварного мяса | E181: 32.0
B182: масло сливочное | D182: 8.0 | E182: 8.0
B183: Лук репчатый | D183: 11.9 | E183: 10.00
B184: Морковь | D184: 16.3 | E184: 13.00
B185: Крупа рисовая | D185: 55.0 | E185: 55.0
B186: вода | D186: 86.0 | E186: 86.0
B187: соль иодированная | D187: 2.0 | E187: 2.0
B188: масса гарнира | E188: 168.0
A189: Кисель | C189: 180 | H189: 18.00 | I189: 72.00 | K189: № 648, сб шк2004
B190: Кисель-концентрат | D190: 21.00 | E190: 21.00
B191: Сахар | D191: 9.00 | E191: 9.00
B192: вода | D192: 180.00 | E192: 180.00
A193: Хлеб пшеничный | C193: 25 | D193: 25.00 | E193: 25.00 | F193: 1.90 | G193: 0.20 | H193: 12.30 | I193: 58.75 | J193: 0.00 | K193: табл 6 стр 134,Дели + 2012
A194: Хлеб ржаной | C194: 45 | D194: 45.00 | E194: 45.00 | F194: 2.98 | G194: 0.54 | H194: 17.82 | I194: 89.10 | K194: табл 6 стр 144,Дели + 2012
A195: Итого: | C195: 697 | F195: =F161+F167+F179+F189+F193+F194 -> 22.80 | G195: =G161+G167+G179+G189+G193+G194 -> 22.77 | H195: =H161+H167+H179+H189+H193+H194 -> 90.76 | I195: =I161+I167+I179+I189+I193+I194 -> 660.31 | J195: =J161+J167+J179+J189+J193+J194 -> 14.21
B196: ПОЛДНИК
A197: Кондитерское изделие | B197: крекер | C197: 20 | D197: 20.00 | E197: 20.00 | F197: 1.80 | G197: 3.60 | H197: 12.80 | I197: 90.00
A198: Кисломолочный напиток | C198: 180 | F198: 5.22 | G198: 4.50 | H198: 7.56 | I198: 92.00 | J198: 0.54 | K198: №420 СБ дошк 2016
A199: (Кефир,ряженка,катык,напиток ацидофильный) | B199: кисломолочный напиток | D199: 185 | E199: 180
A200: Итого: | C200: 200 | F200: =F198 -> 5.22 | G200: =G198 -> 4.50 | H200: 7.56 | I200: 92.00 | J200: 0.54
B201: УЖИН
A202: Запеканка творожная с повидлом | C202: 120/30 | F202: 21.17 | G202: 14.47 | H202: 40.09 | I202: 372.60 | J202: 0.44 | K202: №251, сбдошк 2016
B203: Творог | D203: 112.20 | E203: 110.00
B204: Крупа манная | D204: 7.20 | E204: 7.20
B205: Яйцо | D205: 6.00 | E205: 5.00
B206: Сахар | D206: 9.60 | E206: 9.60
... 898 more rows

Sheet от 1года до 3 лет
A1: Утверждаю | H1: Согласовано
A2: Директор ООО"АБК - Пэймент" | H2: Руководитель дошкольной образовательной
A3: Рахматуллин Р.Р. | H3: организации
E6: Примерное 10-дневное меню
E7: для организации питания детей в дошкольных учреждениях
E8: с 12 - часовым пребыванием от 1 года до 3 лет
A10: День 1 - ый
A11: Наименование блюд и | C11: Масса | D11: Кол - во | E11: Кол - во | F11: Пищевые вещества | I11: Энергетическая | J11: витамин | K11: Сборник
A12: продуктов | C12: порции | D12: (в гр ) | E12: (в гр ) | I12: ценность | K12: рецептур
D13: брутто | E13: нетто | F13: белки | G13: жиры | H13: угл-ды | I13: Ккал | J13: С
A15: Каша "Дружба" молочная | C15: 150 | F15: 2.51 | G15: 0.95 | H15: 18.00 | I15: 88.50 | K15: ТТК №7Д
B16: Крупа рисовая | D16: 11 | E16: 11
B17: Крупа пшенная | D17: 8 | E17: 8
B18: Молоко | D18: 80 | E18: 80
B19: Вода | D19: 52 | E19: 52
B20: Сахар | D20: 4 | E20: 4
B21: соль иодированная | D21: 0.8 | E21: 0.8
A22: Масло сливочное порционно | C22: 5 | F22: 0.04 | G22: 3.63 | H22: 0.07 | I22: 33.00 | K22: №6 сб дошк 2016
B23: Масло сливочное | D23: 5 | E23: 5
A24: Кофейный напиток с молоком | C24: 165 | F24: 2.57 | G24: 2.2 | H24: 11.69 | I24: 77 | J24: 0.16 | K24: №395Дели2010
B25: Кофейный напиток | D25: 2 | E25: 2
B26: Сахар | D26: 7.7 | E26: 7.7
B27: Молоко | D27: 75 | E27: 75
B28: вода | D28: 106 | E28: 106
A29: Бутерброд с маслом сливочным | C29: 25/5 | F29: 1.9 | G29: 4.4 | H29: 13 | I29: 99 | K29: №1 Дели2010
B30: Батон нарезной | D30: 25 | E30: 25
B31: Масло сливочное | D31: 5 | E31: 5
A32: Итого: | C32: 350 | F32: =F15+F24+F29+F22 -> 7.02 | G32: =G15+G24+G29+G22 -> 11.18 | H32: 42.76 | I32: 297.50 | J32: 0.16
B33: 2 - ой ЗАВТРАК
A34: Сок | C34: 200 | D34: 200 | E34: 200 | F34: 1.00 | G34: 0.00 | H34: 20.20 | I34: 85.34 | J34: 4.00 | K34: №418 сб дошк 2016
A35: в ассортименте в инд.упаковке
A36: Итого: | C36: 200 | F36: =F34 -> 1.00 | G36: =G34 -> 0.00 | H36: 20.20 | I36: 85.34 | J36: 4.00
B37: ОБЕД
A38: Салат из моркови с сахаром | C38: 40 | F38: 0.50 | G38: 0.04 | H38: 4.65 | I38: 20.93 | K38: №42 СБ дошк 2016
B39: морковь | D39: 48.00 | E39: 38.00
B40: сахар | D40: 2.00 | E40: 2.00
A41: Суп со звездочами с картофелем с куриными фрикадельками | C41: 150/10 | F41: 2.90 | G41: 2.99 | H41: 10.20 | I41: 85.97 | J41: 3.75 | K41: 140сбшк2004
B42: цыплята - бройлеры с/м | D42: 17.5 | E42: 11.4
B43: или фарш куриный | D43: 11.4 | E43: 11.4
B44: Лук репчатый | D44: 1.19 | E44: 1
B45: Яйцо | D45: 0.96 | E45: 0.8
B46: Вода для фарша | D46: 1 | E46: 1
B47: соль иодированная | D47: 0.1 | E47: 0.1
B48: масса готовых фрикаделек | E48: 10
B49: Картофель | D49: 59.90 | E49: 45.00
B50: Морковь | D50: 7.50 | E50: 6.00
B51: Лук репчатый | D51: 7.14 | E51: 6.00
B52: суповая засыпка (звездочки) | D52: 6.00 | E52: 6.00
B53: Масло растительное | D53: 3.00 | E53: 3.00
B54: соль иодированная | D54: 1.00 | E54: 1.00
B55: Вода | D55: 114.00 | E55: 114.00
A56: Котлеты рубленные из говядины | C56: 50 | F56: 7.45 | G56: 5.50 | H56: 7.28 | I56: 108.13 | K56: СБ дошкольн. №299, 2016
B57: говядина (котлетное мясо б/к) | D57: 36.57 | E57: 35
B58: или фарш говяжий | D58: 35 | E58: 35
B59: лук репчатый | D59: 10.4 | E59: 8.75
B60: Хлеб пшеничный | D60: 8.13 | E60: 8.13
B61: Вода | D61: 5.2 | E61: 5.2
B62: сухари панировочные | D62: 2.8 | E62: 2.8
B63: соль иодированная | D63: 0.4 | E63: 0.4
B64: масса полуфабриката | E64: 61.9
B65: Масло растительное | D65: 0.60 | E65: 0.60
A66: Капуста тушеная | C66: 120 | F66: 2.48 | G66: 3.88 | H66: 11.31 | I66: 90.12 | J66: 20.59 | K66: №354 сбдошк2016
B67: Капуста свежая | D67: 172 | E67: 137.6
B68: Лук репчатый | D68: 5.71 | E68: 4.8
B69: Морковь | D69: 3 | E69: 2.4
B70: Мука пшеничная | D70: 1.44 | E70: 1.44
B71: Масло растительное | D71: 4.2 | E71: 4.2
B72: Сахар | D72: 3.6 | E72: 3.6
B73: соль иодированная | D73: 0.8 | E73: 0.8
A74: Компот из свежемороженных фруктов | C74: 150 | F74: 0.33 | G74: 0.02 | H74: 20.83 | I74: 84.75 | J74: 0.30 | K74: №394 СБ дошк 2016
B75: фрукты свежезамороженные | D75: 16.50 | E75: 16.50
B76: Вода | D76: 152.00 | E76: 152.00
B77: сахар | D77: 8.0 | E77: 8.0
A78: Хлеб ржаной | C78: 40 | D78: 40 | E78: 40 | F78: 2.64 | G78: 0.48 | H78: 15.84 | I78: 79.2 | K78: табл 6 стр 144,Дели + 2012
A79: Итого: | C79: 560.00 | F79: =F38+F41+F56+F66+F74+F78 -> 16.30 | G79: =G38+G41+G56+G66+G74+G78 -> 12.91 | H79: =H38+H41+H56+H66+H74+H78 -> 70.11 | I79: =I38+I41+I56+I66+I74+I78 -> 469.10 | J79: =J38+J41+J56+J66+J74+J78 -> 24.64
B80: ПОЛДНИК
A81: Кисломолочный напиток | C81: 150/5 | F81: 4.35 | G81: 3.75 | H81: 10.99 | I81: 94.95 | J81: 1.05 | K81: №420 Сб дошк 2016
A82: (Кефир,ряженка,катык,напиток ацидофильный) | B82: кисломолочный напиток | D82: 155 | E82: 150
B83: сахар | D83: 5 | E83: 5
A84: Булочка дорожная | C84: 35 | F84: 2.73 | G84: 4.90 | H84: 18.25 | I84: 126.70 | K84: №453 сб дошк2016
B85: Мука пшеничная | D85: 21.35 | E85: 21.00
B86: мука пшеничная на подпыл | D86: 0.70 | E86: 0.70
B87: Сахар | D87: 4.20 | E87: 4.20
B88: Масло сливочное | D88: 4.55 | E88: 4.55
B89: соль иодированная | D89: 0.21 | E89: 0.21
B90: дрожжи сухие | D90: 0.14 | E90: 0.14
B91: вода | D91: 10.70 | E91: 10.70
B92: масса полуфабриката | E92: 39.90
B93: для крошки:
B94: мука пшеничная | D94: 0.84 | E94: 0.84
B95: масло сливочное | D95: 0.70 | E95: 0.70
B96: масса крошки | E96: 1.40
B97: масло растительное для смазки изделй | D97: 0.70 | E97: 0.70
A98: Итого: | C98: 190 | F98: =F81+F84 -> 7.08 | G98: =G81+G84 -> 8.65 | H98: 29.24 | I98: 221.65 | J98: 1.05
B99: УЖИН
A100: Пудинг рыбный | C100: 60/20 | F100: 11.23 | G100: 6.77 | H100: 8.12 | I100: 136.84 | K100: №286 СБ дошк 2016
B101: рыба (минтай с/м БГ) | D101: 68.34 | E101: 50.25
B102: масса отварной рыбы | E102: 39.75
B103: Хлеб пшеничный | D103: 8.25 | E103: 8.25
B104: яйцо | D104: 6.3 | E104: 5.25
B105: молоко | D105: 12 | E105: 12
B106: масло сливочное | D106: 2.25 | E106: 2.25
B107: соль иодированная | D107: 0.4 | E107: 0.4
B108: Масло растительное | D108: 1 | E108: 1
B109: масса пудинга | E109: 60
B110: Соус молочный
B111: молоко | D111: 10 | E111: 10
B112: масло сливочное | D112: 1.1 | E112: 1.1
B113: Мука пшеничная | D113: 1.1 | E113: 1.1
B114: Вода | D114: 10 | E114: 10
B115: Сахар | D115: 0.2 | E115: 0.2
B116: соль иодированная | D116: 0.13 | E116: 0.13
B117: масса соуса | E117: 20
A118: Пюре Картофельное | C118: 120 | F118: 2.46 | G118: 3.84 | H118: 16.35 | I118: 109.80 | J118: 0.20 | K118: № 339 СБ дошк 2016
B119: Картофель | D119: 136.80 | E119: 102.60
B120: Молоко | D120: 18.96 | E120: 18.00
B121: Масло сливочное | D121: 4.20 | E121: 4.20
B122: соль иодированная | D122: 0.45 | E122: 0.45
A123: Чай с сахаром | C123: 150/8 | F123: 0.04 | G123: 0.01 | H123: 6.99 | I123: 28 | J123: 0.04 | K123: №392 Дели2010
B124: чай весовой | D124: 0.4 | E124: 0.4
B125: Сахар | D125: 8 | E125: 8
B126: Вода | D126: 150 | E126: 150
A127: Хлеб пшеничный | C127: 35 | D127: 35.00 | E127: 35.00 | F127: 2.66 | G127: 0.28 | H127: 17.22 | I127: 82.25 | J127: 0.00 | K127: табл 6 стр 134,Дели + 2012
A128: Итого: | C128: 393.00 | F128: =F100+F118+F123+F127 -> 16.39 | G128: =G100+G118+G123+G127 -> 10.90 | H128: 48.68 | I128: 356.89 | J128: 0.24
A129: ВСЕГО: | C129: =C32+C36+C79+C98+C128 -> 1693.00 | F129: =F32+F36+F79+F98+F128 -> 47.79 | G129: =G32+G36+G79+G98+G128 -> 43.64 | H129: =H32+H36+H79+H98+H128 -> 210.99 | I129: =I32+I36+I79+I98+I128 -> 1430.48 | J129: =J32+J36+J79+J98+J128 -> 30.09
A131: День 2- ой
A132: Наименование блюд и | C132: Масса | D132: Кол - во | E132: Кол - во | F132: Пищевые вещества | I132: Энергетическая | J132: Витамин | K132: Сборник
A133: продуктов | C133: порции | D133: (в гр ) | E133: (в гр ) | I133: ценность | K133: рецептур
D134: брутто | E134: нетто | F134: белки | G134: жиры | H134: угл-ды | I134: Ккал | J134: С
B135: ЗАВТРАК
A136: Каша полбяная молочная | C136: 150 | F136: 4.16 | G136: 0.17 | H136: 17.93 | I136: 90.00 | K136: ТТК №1Д
B137: Крупа полбяная | D137: 19 | E137: 19
B138: Молоко | D138: 80 | E138: 80
B139: вода | D139: 52 | E139: 52
B140: Сахар | D140: 4 | E140: 4
B141: соль иодированная | D141: 0.8 | E141: 0.8
A142: Масло сливочное порционно | C142: 5 | F142: 0.04 | G142: 3.62 | H142: 0.07 | I142: 33.00 | K142: №6 сб дошк 2016
B143: Масло сливочное | D143: 5 | E143: 5
A144: Какао с молоком | C144: 160 | F144: 3.47 | G144: 2.99 | H144: 14.26 | I144: 97.90 | J144: 0.32 | K144: №397 Дели2010
B145: Какао-порошок | D145: 1.7 | E145: 1.7
B146: Сахар | D146: 9 | E146: 9
B147: Молоко | D147: 92 | E147: 92
B148: вода | D148: 77 | E148: 77
A149: Бутерброд с сыром, маслом сливочным | C149: 25/5/5 | F149: 3.50 | G149: 5.95 | H149: 12.90 | I149: 119.60 | J149: 0.04 | K149: №3Дели2010
B150: Батон нарезной | D150: 25 | E150: 25
B151: Сыр | D151: 5.1 | E151: 5
B152: Масло сливочное | D152: 5 | E152: 5
A153: Итого: | C153: 350 | F153: =F136+F144+F149+F142 -> 11.17 | G153: =G136+G144+G149+G142 -> 12.73 | H153: 45.16 | I153: 340.50 | J153: 0.36
B154: 2 - ой ЗАВТРАК
A155: Фрукты свежие | C155: 95 | D155: 108.3 | E155: 95 | F155: 0.38 | G155: 0.38 | H155: 9.31 | I155: 41.80 | J155: 9.50 | K155: №386 СБ
A156: (яблоки,или апельсин, или банан,или мандарин ) | K156: дошк.2016
A157: Итого: | C157: 95 | F157: =F155 -> 0.38 | G157: =G155 -> 0.38 | H157: 9.31 | I157: 41.80 | J157: 9.50
B158: ОБЕД
A159: Салат из картофеля с солеными огурцами | C159: 40 | F159: 0.55 | G159: 2.09 | H159: 3.43 | I159: 34.64 | J159: 4.80 | K159: №23 сб дошк2016
B160: огурцы соленые | D160: 21.84 | E160: 12.00
B161: картофель | D161: 21.92 | E161: 16.00
B162: морковь | D162: 10.24 | E162: 8.00
B163: лук репчатый | D163: 2.40 | E163: 2.00
B164: масло растительное | D164: 2.00 | E164: 2.00
A165: Борщ со свежей капустой, картофелем на мясном бульоне,со сметаной | C165: 150/7 | F165: 1.10 | G165: 3.20 | H165: 7.20 | I165: 62.00 | J165: 4.80 | K165: №110,сбшк2004
B166: Капуста свежая | D166: 15.0 | E166: 12.0
B167: Картофель | D167: 15.96 | E167: 12.0
B168: Морковь | D168: 7.5 | E168: 6.0
B169: Лук репчатый | D169: 7.14 | E169: 6.0
B170: Свекла | D170: 30.72 | E170: 24.0
B171: Сахар | D171: 1.8 | E171: 1.8
B172: Масло растительное | D172: 3.0 | E172: 3.0
B173: соль иодированная | D173: 1.5 | E173: 1.5
B174: Бульон | D174: 120 | E174: 120.0
B175: Сметана | D175: 7.0 | E175: 7.0
A176: Плов из отварной говядины | C176: 150 | F176: 11.70 | G176: 11.70 | H176: 24.00 | I176: 248.30 | J176: 0.48 | K176: №443 сбшк2004
B177: говядина б/к (лопатка) | D177: 39.00 | E177: 39.0
B178: масса вареного мяса | E178: 24.0
B179: масло сливочное | D179: 5.0 | E179: 5.0
B180: Лук репчатый | D180: 8.9 | E180: 7.5
B181: Морковь | D181: 12.5 | E181: 10.0
B182: Крупа рисовая | D182: 32.0 | E182: 32.0
B183: вода | D183: 65.0 | E183: 65.0
B184: соль иодированная | D184: 1.3 | E184: 1.3
B185: масса гарнира | E185: 126.0
A186: Кисель | C186: 150 | H186: 15.00 | I186: 60.00 | K186: №648 сбшк2004
B187: Кисель-концентрат | D187: 17.50 | E187: 17.50
B188: Сахар | D188: 7.00 | E188: 7.00
B189: вода | D189: 150.00 | E189: 150.00
A190: Хлеб ржаной | C190: 40 | D190: 40 | E190: 40 | F190: 2.64 | G190: 0.48 | H190: 15.84 | I190: 79.2 | K190: табл 6 стр 144,Дели + 2012
A191: Итого: | C191: 537 | F191: =F159+F165+F176+F186+F190 -> 15.99 | G191: =G159+G165+G176+G186+G190 -> 17.47 | H191: 65.47 | I191: 484.14 | J191: 10.08
B192: ПОЛДНИК
A193: Кондитерское изделие | B193: крекер | C193: 15 | D193: 15.00 | E193: 15.00 | F193: 1.35 | G193: 2.70 | H193: 9.60 | I193: 67.47
A194: Кисломолочный напиток | C194: 150 | F194: 4.35 | G194: 3.75 | H194: 6.30 | I194: 76.00 | J194: 0.45 | K194: №420 Сб дошк 2016
A195: (кефир,ряженка,катык,напиток ацидофильный) | B195: кисломолочный напиток | D195: 155 | E195: 150
A196: Итого: | C196: 165 | F196: =F194 -> 4.35 | G196: =G194 -> 3.75 | H196: 6.30 | I196: 76.00 | J196: 0.45
B197: УЖИН
A198: Запеканка творожная с повидлом | C198: 110/20 | F198: 19.37 | G198: 13.26 | H198: 31.87 | I198: 321.70 | J198: 0.36 | K198: № 251 сб дошк 2016
B199: Творог | D199: 103.2 | E199: 101.2
B200: крупа манная | D200: 6.6 | E200: 6.6
B201: Яйцо | D201: 5.28 | E201: 4.4
B202: Сахар | D202: 8.8 | E202: 8.8
B203: Сметана | D203: 4.4 | E203: 4.4
B204: Масло сливочное | D204: 4.4 | E204: 4.4
B205: Сухари панировочные | D205: 4.4 | E205: 4.4
... 892 more rows
